bitfinex/quotes_BTCUSD_20251015
["timestamp","ask_amount","ask_price","bid_price","bid_amount"]
[1760540905220,0.4714787,111460.0,111450.0,0.17945266]
[1760540905424,0.66087019,111470.0,111450.0,0.17945266]
[1760540905629,0.001,111470.0,111450.0,0.21624215]
[1760540905830,0.001,111470.0,111460.0,0.17943656]
[1760540905831,0.18142047,111470.0,111460.0,0.17943656]
[1760540906030,0.002,111470.0,111460.0,0.17943656]
[1760540906266,0.65089917,111470.0,111450.0,0.17945266]
[1760540906422,0.00058517,111460.0,111450.0,0.17945266]
[1760540907390,0.03642844,111460.0,111450.0,0.17945266]
[1760540907595,0.50790714,111460.0,111450.0,0.17945266]
[1760540907923,0.6873437,111460.0,111440.0,0.17946741]
[1760540908147,0.6873437,111460.0,111450.0,0.17945266]
[1760540908352,0.03642844,111460.0,111450.0,0.17945266]
[1760540909255,0.03642844,111460.0,111440.0,0.17946741]
[1760540909568,0.03642844,111460.0,111450.0,0.17945266]
[1760540909768,0.17946721,111450.0,111420.0,0.66020089]
[1760540910020,0.4714787,111450.0,111430.0,0.26917439]
[1760540910228,0.69634298,111460.0,111440.0,0.17946877]
[1760540910440,0.4714787,111450.0,111440.0,0.17946877]
[1760540910641,0.17945266,111450.0,111440.0,0.17946877]
[1760540910852,0.17945266,111450.0,111430.0,0.26917439]
[1760540911201,0.17945266,111450.0,111420.0,0.26020089]
[1760540911202,0.17946877,111440.0,111420.0,0.26020089]
[1760540911408,0.65094747,111440.0,111420.0,0.27813891]
[1760540911842,0.17948487,111430.0,111420.0,0.08969012]
[1760540912401,0.4714787,111430.0,111420.0,0.17950098]
[1760540913732,0.65094747,111440.0,111420.0,0.17950098]
[1760540914133,0.65097639,111440.0,111420.0,0.17950098]
[1760540914341,0.17948487,111430.0,111410.0,0.18848018]
[1760540914549,0.65098187,111420.0,111400.0,0.17953017]
[1760540914760,0.65993781,111430.0,111410.0,0.17951709]
[1760540915373,0.18845911,111430.0,111410.0,0.17951709]
[1760540915577,0.74963994,111440.0,111410.0,0.17951709]
[1760540915789,0.17948565,111430.0,111410.0,0.17951709]
[1760540916195,0.65096435,111430.0,111410.0,0.17951709]
[1760540916408,0.17950098,111420.0,111400.0,0.27819695]
[1760540916853,0.65097968,111420.0,111400.0,0.27819695]
[1760540917192,0.17951709,111410.0,111400.0,0.08969012]
[1760540917391,0.65099579,111410.0,111400.0,0.08969012]
[1760540917824,0.65097968,111420.0,111400.0,0.26922333]
[1760540918296,0.17951709,111410.0,111390.0,2.18847862]
[1760540918497,0.65099579,111410.0,111390.0,2.08969012]
[1760540918699,0.4714787,111400.0,111390.0,2.0]
[1760540918903,0.4714787,111400.0,111390.0,2.17954933]
[1760540919105,0.17948753,111430.0,111410.0,0.17951306]
[1760540919349,5.1794856,111430.0,111410.0,0.17951306]
[1760540919648,0.1794856,111430.0,111410.0,0.17951306]
[1760540920051,0.17950098,111420.0,111400.0,0.18850987]
[1760540920252,0.1804856,111430.0,111410.0,0.17951656]
[1760540920446,0.4714787,111420.0,111410.0,0.17951656]
[1760540920641,0.6519643,111430.0,111410.0,0.17951656]
[1760540921291,0.65097968,111420.0,111400.0,0.27819999]
[1760540921502,0.001,111430.0,111410.0,0.17951709]
[1760540921648,0.001,111430.0,111420.0,0.19745107]
[1760540922049,0.001,111430.0,111420.0,0.2691911]
[1760540922248,0.69704417,111460.0,111440.0,0.17946877]
[1760540922451,0.03714994,111460.0,111450.0,0.17945266]
[1760540922583,0.2165865,111460.0,111440.0,0.17946877]
[1760540923025,0.03714994,111460.0,111450.0,0.17945266]
[1760540923611,0.03814994,111460.0,111450.0,0.17945266]
[1760540923816,0.2175865,111460.0,111450.0,0.17945266]
[1760540924223,0.03814994,111460.0,111450.0,0.17945266]
[1760540925848,0.03714994,111460.0,111450.0,0.17945266]
[1760540926271,0.03714994,111460.0,111450.0,0.26914278]
[1760540926483,0.00058517,111460.0,111450.0,0.26914278]
[1760540927122,0.00058517,111460.0,111440.0,0.17946622]
[1760540927330,0.00058517,111460.0,111450.0,0.17945266]
[1760540927731,0.18002173,111460.0,111450.0,0.17945266]
[1760540928403,0.21610169,111460.0,111450.0,0.17945266]
[1760540928607,0.68758039,111460.0,111440.0,0.08969012]
[1760540928850,0.21610169,111460.0,111440.0,0.08969012]
[1760540929053,0.68758039,111460.0,111440.0,0.26915773]
[1760540929230,0.21610169,111460.0,111450.0,0.17945266]
[1760540929405,0.21610169,111460.0,111440.0,0.26915773]
[1760540929798,0.21710169,111460.0,111440.0,0.26915773]
[1760540930625,0.21610169,111460.0,111440.0,0.26915773]
[1760540930855,0.00058517,111460.0,111450.0,0.74062148]
[1760540930992,0.00058517,111460.0,111450.0,0.26914278]
[1760540932023,0.00158517,111460.0,111450.0,0.26914278]
[1760540932237,0.00058517,111460.0,111450.0,0.26914278]
[1760540934123,0.00058517,111460.0,111450.0,0.33499684]
[1760540934429,0.00058517,111460.0,111450.0,0.26914278]
[1760540937126,0.47206387,111460.0,111450.0,0.26914278]
[1760540937296,0.00058517,111460.0,111450.0,0.26914278]
[1760540940561,0.00058517,111460.0,111450.0,0.74062148]
[1760540940700,0.00058517,111460.0,111450.0,0.26914278]
[1760540941730,0.47206387,111460.0,111450.0,0.08969012]
[1760540941958,0.00058517,111460.0,111450.0,0.26914278]
[1760540945249,0.00058517,111460.0,111450.0,0.31400382]
[1760540945922,0.00058517,111460.0,111450.0,0.78548252]
[1760540946148,0.00058517,111460.0,111450.0,0.42848382]
[1760540946370,0.00058517,111460.0,111450.0,0.26914278]
[1760540946826,0.00058517,111460.0,111450.0,0.08969012]
[1760540947062,0.18002173,111460.0,111450.0,0.08969012]
[1760540947286,0.00058517,111460.0,111450.0,0.26914278]
[1760540948031,0.00058517,111460.0,111420.0,1.1678891]
[1760540948032,0.66047225,111460.0,111410.0,0.18849294]
[1760540948262,0.65097696,111440.0,111420.0,0.34094147]
[1760540948493,0.65992942,111450.0,111430.0,0.17948487]
[1760540948932,0.17946877,111440.0,111430.0,0.17948487]
[1760540949671,0.17946877,111440.0,111420.0,0.27816441]
[1760540949875,0.65094747,111440.0,111430.0,0.17948487]
[1760540950082,0.4714787,111440.0,111430.0,0.17948487]
[1760540950298,0.65992942,111450.0,111430.0,0.17948487]
[1760540951328,0.02756942,111460.0,111440.0,0.17946877]
[1760540951592,0.00058517,111460.0,111450.0,0.17945266]
[1760540951798,0.00058517,111460.0,111450.0,0.26914278]
[1760540952306,0.00058517,111460.0,111450.0,0.26814278]
[1760540952544,0.00058517,111460.0,111450.0,0.73962148]
[1760540952798,0.00058517,111460.0,111450.0,0.47226486]
[1760540953059,0.00058517,111460.0,111450.0,0.35782486]
[1760540953595,0.00058517,111460.0,111450.0,0.94374356]
[1760540953783,0.00058517,111460.0,111450.0,0.82930356]
[1760540954002,0.00058517,111460.0,111450.0,0.47226486]
[1760540954460,0.00058517,111460.0,111450.0,0.35882486]
[1760540954964,0.00058517,111460.0,111450.0,0.97509206]
[1760540955183,0.00058517,111460.0,111450.0,0.97409206]
[1760540955451,0.00058517,111460.0,111450.0,0.97509206]
[1760540955682,0.00058517,111460.0,111450.0,0.97609206]
[1760540955910,0.00058517,111460.0,111450.0,0.89783434]
[1760540956144,0.00058517,111460.0,111450.0,0.98192584]
[1760540956378,0.00058517,111460.0,111450.0,0.38458278]
[1760540956606,0.00058517,111460.0,111450.0,0.27014278]
[1760540956829,0.00058517,111460.0,111450.0,0.78458278]
[1760540957045,0.00058517,111460.0,111450.0,1.25606148]
[1760540957254,0.00058517,111460.0,111450.0,1.14062148]
[1760540957473,0.00058517,111460.0,111450.0,0.78358278]
[1760540957693,0.00058517,111460.0,111450.0,0.78458278]
[1760540957912,0.00058517,111460.0,111450.0,0.38358278]
[1760540958115,0.00058517,111460.0,111450.0,0.26914278]
[1760540958321,0.00058517,111460.0,111450.0,0.67014278]
[1760540958751,0.00058517,111460.0,111450.0,0.26914278]
[1760540958969,0.00058517,111460.0,111450.0,0.26814278]
[1760540959542,0.00058517,111460.0,111450.0,0.08969012]
[1760540959543,0.18002173,111460.0,111450.0,0.08969012]
[1760540959772,0.90934966,111460.0,111440.0,0.17946812]
[1760540959924,0.18002173,111460.0,111440.0,0.26915824]
[1760540960130,0.17945266,111450.0,111440.0,0.26915824]
[1760540960585,0.18002173,111460.0,111440.0,0.26915824]
[1760540961426,0.18002173,111460.0,111450.0,0.17945266]
[1760540962116,0.18002173,111460.0,111440.0,0.26915824]
[1760540963550,0.17945266,111450.0,111440.0,0.08969012]
[1760540963688,0.90878059,111450.0,111430.0,0.17948283]
[1760540963902,0.03075212,111450.0,111430.0,0.26917295]
[1760540964108,0.17945416,111450.0,111430.0,0.26917295]
[1760540964763,0.51945416,111450.0,111440.0,0.17946877]
[1760540965307,0.34,111450.0,111440.0,0.17946877]
[1760540965535,0.51945266,111450.0,111440.0,0.17946877]
[1760540965940,0.34,111450.0,111440.0,0.17946877]
[1760540966533,0.51945266,111450.0,111440.0,0.17946877]
[1760540967280,0.02698214,111470.0,111460.0,0.17943656]
[1760540967419,0.19599936,111470.0,111440.0,0.32299649]
[1760540967636,0.34,111460.0,111450.0,0.17943903]
[1760540967830,0.51943656,111460.0,111450.0,0.17943903]
[1760540968037,1.2487652,111460.0,111440.0,0.27813232]
[1760540968501,0.17945266,111450.0,111440.0,0.08969012]
[1760540968709,0.17945266,111450.0,111440.0,0.26915889]
[1760540969356,0.17947183,111440.0,111420.0,0.26022639]
[1760540969559,0.17947183,111440.0,111430.0,0.17948487]
[1760540969770,0.18842529,111450.0,111430.0,0.17948487]
[1760540969972,0.21968565,111450.0,111430.0,0.17948487]
[1760540970593,0.17946877,111440.0,111430.0,0.17948487]
[1760540971210,0.21968565,111450.0,111430.0,0.17948487]
[1760540971970,0.34,111440.0,111430.0,0.17948487]
[1760540972754,0.34,111440.0,111430.0,0.26917499]
[1760540972956,0.03126036,111450.0,111440.0,0.17946877]
[1760540973152,0.52840909,111460.0,111440.0,0.17946877]
[1760540973153,0.34,111460.0,111450.0,0.17945266]
[1760540973371,0.17943656,111460.0,111450.0,0.17945266]
[1760540973579,0.51943656,111460.0,111450.0,0.17945266]
[1760540974028,0.17945266,111450.0,111440.0,0.27813232]
[1760540974239,0.34,111440.0,111430.0,0.17947875]
[1760540974441,0.34,111440.0,111430.0,0.26916887]
[1760540975298,0.21021322,111450.0,111440.0,0.17946877]
[1760540975698,0.21021322,111450.0,111430.0,0.17947875]
[1760540975911,0.17946877,111440.0,111430.0,0.17947875]
[1760540976767,0.17946877,111440.0,111430.0,0.18047875]
[1760540977105,0.17946877,111440.0,111430.0,0.17947875]
[1760540977290,0.17948487,111430.0,111420.0,0.18847429]
[1760540977485,0.17946877,111440.0,111420.0,0.27816614]
[1760540978052,0.17946877,111440.0,111430.0,0.17948487]
[1760540978459,0.51946877,111440.0,111430.0,0.17948487]
[1760540980112,0.51948487,111430.0,111400.0,0.00897666]
[1760540980337,1.25778704,111430.0,111410.0,0.17951709]
[1760540980537,0.34,111430.0,111410.0,0.26920721]
[1760540980739,0.34,111430.0,111420.0,0.29390098]
[1760540980943,0.34,111430.0,111420.0,0.17950098]
[1760540981138,0.17946928,111440.0,111430.0,0.17948487]
[1760540981590,0.17946877,111440.0,111430.0,0.29388487]
[1760540981805,0.58617192,111450.0,111430.0,0.17948487]
[1760540982036,0.17946877,111440.0,111430.0,0.26917499]
[1760540982215,0.17946877,111440.0,111430.0,0.16336487]
[1760540982624,0.17946877,111440.0,111430.0,0.27776487]
[1760540982782,0.17946877,111440.0,111430.0,0.29388487]
[1760540983246,0.17946877,111440.0,111430.0,0.17948487]
[1760540983450,0.17948487,111430.0,111420.0,0.18847602]
[1760540983581,0.17948487,111430.0,111420.0,0.27816614]
[1760540983779,0.9087967,111440.0,111420.0,0.27816614]
[1760540983982,0.9087967,111440.0,111430.0,0.17948487]
[1760540984288,0.17946877,111440.0,111430.0,0.17948487]
[1760540984809,0.17946877,111440.0,111430.0,0.1144]
[1760540985134,0.17948487,111430.0,111420.0,0.26918836]
[1760540985347,0.17946877,111440.0,111420.0,0.38358836]
[1760540985546,0.17946877,111440.0,111430.0,0.1144]
[1760540985766,0.17946877,111440.0,111430.0,0.17948487]
[1760540986008,0.17946877,111440.0,111420.0,0.26918836]
[1760540986225,0.17946877,111440.0,111420.0,0.38358836]
[1760540986433,0.17948487,111430.0,111420.0,0.26918836]
[1760540986683,0.17948487,111430.0,111420.0,0.38358836]
[1760540986896,0.17948487,111430.0,111420.0,0.26918836]
[1760540987103,0.17948487,111430.0,111420.0,0.38358836]
[1760540987505,0.17948487,111430.0,111420.0,0.17950098]
[1760540987792,0.17948487,111430.0,111420.0,0.29390098]
[1760540988327,0.91777013,111440.0,111420.0,0.29390098]
[1760540988547,0.17948487,111430.0,111420.0,0.17950098]
[1760540988787,0.1884422,111440.0,111420.0,0.29390098]
[1760540988938,0.20499154,111440.0,111420.0,0.29390098]
[1760540989149,0.20499154,111440.0,111420.0,0.17950098]
[1760540989571,0.17948487,111430.0,111420.0,0.17950098]
[1760540989982,0.17948487,111430.0,111420.0,0.29390098]
[1760540990217,0.17948487,111430.0,111420.0,0.17950098]
[1760540990440,0.91777013,111440.0,111420.0,0.17950098]
[1760540990634,0.20499346,111440.0,111430.0,0.17948487]
[1760540991585,0.20499346,111440.0,111420.0,0.17950098]
[1760540992072,0.20499346,111440.0,111430.0,0.17948487]
[1760540992273,0.20499346,111440.0,111430.0,0.29388487]
[1760540992484,0.20499346,111440.0,111430.0,0.1144]
[1760540992706,0.20499346,111440.0,111430.0,0.17948487]
[1760540993047,0.97549985,111450.0,111430.0,0.17948487]
[1760540993210,0.17946877,111440.0,111430.0,0.17948487]
[1760540993777,0.17948487,111430.0,111420.0,0.17950098]
[1760540994270,0.17946877,111440.0,111420.0,0.17950098]
[1760540994469,0.17948487,111430.0,111420.0,0.17950098]
[1760540995350,0.9087967,111440.0,111420.0,0.17950098]
[1760540995557,0.17948487,111430.0,111410.0,0.18849294]
[1760540995713,0.17948487,111430.0,111420.0,0.17950098]
[1760540995913,0.9087967,111440.0,111420.0,0.29390098]
[1760540996113,0.9253381,111440.0,111430.0,0.17948487]
[1760540996360,0.19601017,111440.0,111430.0,0.17948487]
[1760540996874,0.19601017,111440.0,111420.0,0.17950098]
[1760540997073,0.19601017,111440.0,111420.0,0.29390098]
[1760540997860,0.19601017,111440.0,111430.0,0.17948487]
[1760540998060,0.19601017,111440.0,111420.0,0.17950098]
[1760540998426,0.9253381,111440.0,111420.0,0.17950098]
[1760540999318,0.9253381,111440.0,111420.0,0.29390098]
[1760540999523,0.9253381,111440.0,111420.0,0.29386098]
[1760540999723,0.19601017,111440.0,111430.0,0.17948487]
[1760541000269,0.97549985,111450.0,111440.0,0.17946877]
[1760541000270,0.05774634,111450.0,111440.0,0.17946877]
[1760541000478,0.04730875,111450.0,111440.0,0.17946877]
[1760541000709,0.77663668,111450.0,111420.0,0.18847602]
[1760541000960,0.77663668,111450.0,111410.0,0.18849294]
[1760541000961,0.72932793,111430.0,111410.0,0.18849294]
[1760541001165,0.9088128,111430.0,111420.0,0.17950098]
[1760541001606,0.17948487,111430.0,111420.0,0.17950098]
[1760541001823,0.17948487,111430.0,111410.0,0.27818306]
[1760541002047,0.17948487,111430.0,111420.0,0.17950098]
[1760541002879,0.17948487,111430.0,111410.0,0.27818306]
[1760541003081,0.9088128,111430.0,111410.0,0.27818306]
[1760541003354,0.9088128,111430.0,111420.0,0.17950098]
[1760541003500,0.17948487,111430.0,111420.0,0.17950098]
[1760541004314,0.94475923,111440.0,111430.0,0.17948487]
[1760541004315,0.02698811,111440.0,111430.0,0.17948487]
[1760541004495,0.01655632,111440.0,111430.0,0.17948487]
[1760541004708,0.22227905,111450.0,111440.0,0.17946877]
[1760541004934,0.01655787,111450.0,111440.0,0.17946877]
[1760541005145,0.19601053,111450.0,111440.0,0.29382877]
[1760541005340,0.92534142,111450.0,111430.0,0.17948487]
[1760541005705,0.92534142,111450.0,111430.0,0.11436]
[1760541006007,0.17946877,111440.0,111420.0,0.18847602]
[1760541006290,0.19603049,111440.0,111430.0,0.11436]
[1760541006489,0.19603053,111440.0,111420.0,0.27816614]
[1760541007030,0.17948487,111430.0,111420.0,0.2691905]
[1760541007962,0.17948487,111430.0,111420.0,0.17950038]
[1760541008548,0.17948487,111430.0,111420.0,0.29386038]
[1760541008700,0.17948487,111430.0,111420.0,0.17950038]
[1760541009559,0.9087967,111440.0,111420.0,0.17950038]
[1760541009701,0.92537035,111440.0,111430.0,0.11436]
[1760541009911,0.17948487,111430.0,111420.0,0.17950038]
[1760541010342,0.17948487,111430.0,111390.0,2.59295946]
[1760541010343,0.92538861,111430.0,111390.0,2.19295946]
[1760541010507,0.90883452,111420.0,111410.0,0.17951709]
[1760541010916,0.17950659,111420.0,111400.0,0.26922295]
[1760541011121,0.17951709,111410.0,111400.0,0.26922295]
[1760541011319,0.17950659,111420.0,111400.0,0.26922295]
[1760541012461,0.90883452,111420.0,111400.0,0.17953321]
[1760541012663,0.18845911,111430.0,111400.0,0.17953321]
[1760541012878,0.17950098,111420.0,111410.0,0.17951709]
[1760541013080,0.17951709,111410.0,111400.0,0.18850987]
[1760541013288,0.17951709,111410.0,111390.0,2.19295946]
[1760541013492,0.90884502,111410.0,111390.0,2.28264958]
[1760541013712,0.17953321,111400.0,111390.0,2.00447627]
[1760541013921,0.90886114,111400.0,111390.0,2.1840256]
[1760541014118,0.90884502,111410.0,111390.0,2.1840256]
[1760541014749,0.90884502,111410.0,111400.0,0.17953321]
[1760541015178,0.90884502,111410.0,111390.0,2.1850256]
[1760541015373,0.17953321,111400.0,111390.0,2.00547627]
[1760541015634,0.90886114,111400.0,111390.0,2.1850256]
[1760541015977,0.90886114,111400.0,111390.0,2.00547627]
[1760541016324,0.17953321,111400.0,111390.0,2.1840256]
[1760541016765,0.90886114,111400.0,111390.0,2.00447627]
[1760541018465,0.17953321,111400.0,111390.0,2.00447627]
[1760541019524,0.65166373,111400.0,111390.0,2.1840256]
[1760541019727,0.65166373,111400.0,111390.0,2.00447627]
[1760541020117,0.65086934,111400.0,111390.0,2.00447627]
[1760541023811,5.55415734,111400.0,111390.0,2.00447627]
[1760541024651,5.08202682,111400.0,111390.0,2.00447627]
[1760541024857,5.55415734,111400.0,111390.0,2.00447627]
[1760541025076,0.65086934,111400.0,111390.0,2.00447627]
[1760541025923,6.11597798,111400.0,111390.0,2.00447627]
[1760541026477,5.17171694,111400.0,111390.0,2.00447627]
[1760541026682,6.13252183,111400.0,111390.0,2.00447627]
[1760541028343,6.16870411,111400.0,111390.0,2.00447627]
[1760541028516,6.20570653,111400.0,111390.0,2.00447627]
[1760541030003,6.19570653,111400.0,111390.0,2.00447627]
[1760541030213,5.68739373,111400.0,111390.0,2.00447627]
[1760541030536,5.64384746,111400.0,111390.0,2.00447627]
[1760541030734,5.64484746,111400.0,111390.0,2.00447627]
[1760541030945,5.64584746,111400.0,111390.0,2.00447627]
[1760541031750,6.11797798,111400.0,111390.0,2.00447627]
[1760541031972,6.15416026,111400.0,111390.0,2.00447627]
[1760541032352,6.17070145,111400.0,111390.0,2.00447627]
[1760541032475,6.18070145,111400.0,111390.0,2.00447627]
[1760541033802,6.18070145,111400.0,111390.0,1.52920975]
[1760541033985,6.20387225,111400.0,111390.0,1.52920975]
[1760541034201,6.23118014,111400.0,111390.0,1.05410494]
[1760541034419,6.23258855,111400.0,111390.0,0.9849102]
[1760541034631,6.20941775,111400.0,111390.0,0.9849102]
[1760541035061,6.20841775,111400.0,111390.0,0.9849102]
[1760541035455,6.21039083,111400.0,111390.0,0.9849102]
[1760541036345,6.20939083,111400.0,111390.0,0.9849102]
[1760541036555,6.21139083,111400.0,111390.0,0.9849102]
[1760541037132,6.30597083,111400.0,111390.0,0.54176897]
[1760541037686,6.30597083,111400.0,111340.0,0.0717521]
[1760541037687,0.17961383,111350.0,111340.0,0.0717521]
[1760541037827,0.48865112,111350.0,111340.0,0.25138206]
[1760541038190,0.48865112,111350.0,111340.0,0.17962996]
[1760541039306,0.66826495,111350.0,111330.0,0.18862191]
[1760541039541,0.23172193,111340.0,111330.0,0.179645]
[1760541039741,0.03941575,111340.0,111330.0,0.17964609]
[1760541040152,0.0165206,111340.0,111330.0,0.17964609]
[1760541040280,4.903288,111350.0,111340.0,0.17962996]
[1760541040481,0.48861255,111350.0,111340.0,0.17962996]
[1760541041105,0.66822644,111350.0,111340.0,0.17962996]
[1760541041330,0.48860837,111350.0,111340.0,0.17962996]
[1760541041535,0.6682222,111350.0,111340.0,0.17962996]
[1760541042599,0.48860837,111350.0,111340.0,0.17962996]
[1760541043511,0.01647785,111350.0,111340.0,0.18255984]
[1760541044123,0.01647785,111350.0,111340.0,0.74438048]
[1760541044816,0.01647785,111350.0,111340.0,0.27224996]
[1760541045252,0.01647785,111350.0,111340.0,0.38760996]
[1760541045463,0.01647785,111350.0,111340.0,0.27324996]
[1760541045671,0.01647785,111350.0,111340.0,0.38760996]
[1760541045894,0.01647785,111350.0,111340.0,0.27424996]
[1760541046117,0.01647785,111350.0,111340.0,0.27324996]
[1760541046578,0.01647785,111350.0,111340.0,0.27224996]
[1760541046809,0.01647785,111350.0,111340.0,0.18255984]
[1760541047043,0.6682222,111350.0,111340.0,0.18255984]
[1760541047265,0.48860837,111350.0,111340.0,0.18255984]
[1760541047490,0.6682222,111350.0,111340.0,0.00292988]
[1760541047695,0.6682222,111350.0,111340.0,0.18255984]
[1760541047896,0.6682222,111350.0,111340.0,0.00292988]
[1760541048311,0.19609168,111350.0,111340.0,0.00292988]
[1760541048734,0.01647785,111350.0,111340.0,0.18255984]
[1760541048936,0.19609168,111350.0,111340.0,0.00292988]
[1760541049274,0.01647785,111350.0,111340.0,0.18255984]
[1760541058714,0.19609168,111350.0,111340.0,0.18255984]
[1760541059159,0.01647785,111350.0,111340.0,0.18255984]
[1760541059334,0.6682222,111350.0,111340.0,0.18255984]
[1760541059534,0.6682222,111350.0,111340.0,0.00292988]
[1760541059743,0.6682222,111350.0,111340.0,0.18255984]
[1760541059941,0.69464544,111350.0,111340.0,0.18255984]
[1760541060354,0.71370696,111350.0,111340.0,0.18255984]
[1760541060767,0.24157644,111350.0,111340.0,0.18255984]
[1760541060967,0.24157644,111350.0,111340.0,0.00292988]
[1760541060968,0.22251492,111350.0,111340.0,0.00292988]
[1760541061382,0.78433556,111350.0,111340.0,0.00292988]
[1760541061615,5.70668508,111350.0,111340.0,0.00292988]
[1760541061942,5.74286736,111350.0,111340.0,0.00292988]
[1760541062257,5.78699641,111350.0,111340.0,0.00292988]
[1760541062470,5.79159847,111350.0,111340.0,0.00292988]
[1760541062670,5.79059847,111350.0,111340.0,0.00292988]
[1760541062870,5.79159847,111350.0,111340.0,0.00292988]
[1760541063046,5.79259847,111350.0,111340.0,0.00292988]
[1760541063251,5.88772538,111350.0,111340.0,0.00292988]
[1760541063559,5.91061799,111350.0,111340.0,0.00292988]
[1760541063818,5.91161799,111350.0,111340.0,0.00292988]
[1760541064163,5.91261799,111350.0,111340.0,0.00292988]
[1760541064433,5.92853596,111350.0,111340.0,0.00292988]
[1760541064873,5.90574816,111350.0,111340.0,0.00292988]
[1760541065076,5.11911637,111330.0,111320.0,0.0004]
[1760541065273,5.7213707,111330.0,111320.0,0.0004]
[1760541065485,5.74043222,111330.0,111320.0,0.0004]
[1760541065693,6.23051308,111330.0,111320.0,0.0004]
[1760541066275,5.31009977,111330.0,111320.0,0.0004]
[1760541066500,5.2682984,111330.0,111320.0,0.0004]
[1760541066695,5.74042892,111330.0,111320.0,0.0004]
[1760541066989,5.74242892,111330.0,111320.0,0.0004]
[1760541067386,5.71858119,111330.0,111320.0,0.0004]
[1760541068179,5.70199853,111330.0,111320.0,0.0004]
[1760541069449,5.72584626,111330.0,111320.0,0.0004]
[1760541069680,5.70199853,111330.0,111320.0,0.0004]
[1760541070111,5.72584626,111330.0,111320.0,0.0004]
[1760541070286,5.70199853,111330.0,111320.0,0.0004]
[1760541070490,5.72584626,111330.0,111320.0,0.0004]
[1760541070696,5.74240127,111330.0,111320.0,0.0004]
[1760541070951,5.74240127,111330.0,111320.0,0.00157243]
[1760541071192,5.75240127,111330.0,111320.0,0.00157243]
[1760541071350,5.75240278,111330.0,111320.0,0.00157243]
[1760541071560,6.2245328,111330.0,111320.0,0.00157243]
[1760541071916,6.25633417,111330.0,111320.0,0.00157243]
[1760541072399,6.25155616,111330.0,111320.0,0.00157243]
[1760541072570,6.23500014,111330.0,111320.0,0.00157243]
[1760541073256,5.2907391,111330.0,111320.0,0.00157243]
[1760541073468,5.72902189,111330.0,111320.0,0.00157243]
[1760541074028,5.74557838,111330.0,111320.0,0.00157243]
[1760541074670,5.72902189,111330.0,111320.0,0.00157243]
[1760541075104,5.7794363,111330.0,111320.0,0.00157243]
[1760541075302,5.75558359,111330.0,111320.0,0.00157243]
[1760541075649,5.77943132,111330.0,111320.0,0.00157243]
[1760541076497,5.75558359,111330.0,111320.0,0.00157243]
[1760541076919,5.74558359,111330.0,111320.0,0.00157243]
[1760541077341,5.76943132,111330.0,111320.0,0.00157243]
[1760541077561,5.74558359,111330.0,111320.0,0.00157243]
[1760541078207,5.7467206,111330.0,111320.0,0.00157243]
[1760541078462,5.24756672,111330.0,111320.0,0.00157243]
[1760541078706,0.34427872,111330.0,111320.0,0.00157243]
[1760541078930,0.3252172,111330.0,111320.0,0.00157243]
[1760541079159,0.28788963,111330.0,111320.0,0.00157243]
[1760541079398,0.30967743,111330.0,111320.0,0.00157243]
[1760541079627,0.28788963,111330.0,111320.0,0.00157243]
[1760541079832,0.28688963,111330.0,111320.0,0.00157243]
[1760541080070,0.01755342,111330.0,111320.0,0.18123466]
[1760541081337,0.01755342,111330.0,111320.0,0.91264805]
[1760541081761,0.19619951,111330.0,111320.0,0.00157243]
[1760541082182,5.8309009,111330.0,111320.0,0.00157243]
[1760541082385,5.93965254,111330.0,111320.0,0.00157243]
[1760541084922,5.94065254,111330.0,111320.0,0.00157243]
[1760541085726,5.94165254,111330.0,111320.0,0.00157243]
[1760541087765,5.97683482,111330.0,111320.0,0.00157243]
[1760541088361,6.01068255,111330.0,111320.0,0.00157243]
[1760541088966,6.00970682,111330.0,111320.0,0.00157243]
[1760541089275,5.98785909,111330.0,111320.0,0.00157243]
[1760541089477,5.2564457,111330.0,111320.0,0.00157243]
[1760541089614,5.97785909,111330.0,111320.0,0.00157243]
[1760541089817,5.94167681,111330.0,111320.0,0.00157243]
[1760541090444,5.94067681,111330.0,111320.0,0.00157243]
[1760541090644,5.9406865,111330.0,111320.0,0.00157243]
[1760541090821,5.9416865,111330.0,111320.0,0.00157243]
[1760541091052,5.9406865,111330.0,111320.0,0.00157243]
[1760541092300,5.97686878,111330.0,111320.0,0.00157243]
[1760541092529,5.98686878,111330.0,111320.0,0.00157243]
[1760541093509,5.98586878,111330.0,111320.0,0.00157243]
[1760541093718,5.98586878,111330.0,111290.0,0.0004]
[1760541093719,5.11913251,111320.0,111290.0,0.0004]
[1760541093989,5.8143959,111300.0,111290.0,0.0004]
[1760541094119,5.95686634,111300.0,111290.0,0.0004]
[1760541095135,5.95786634,111300.0,111290.0,0.0004]
[1760541096776,5.96786634,111300.0,111290.0,0.0004]
[1760541096978,5.9879775,111300.0,111290.0,0.0004]
[1760541097551,5.25656411,111300.0,111290.0,0.0004]
[1760541097738,5.9879775,111300.0,111290.0,0.0004]
[1760541097901,5.75332899,111300.0,111290.0,0.0004]
[1760541098107,5.9330235,111300.0,111290.0,0.0004]
[1760541098310,5.93099961,111300.0,111290.0,1e-08]
[1760541098562,5.96815749,111300.0,111290.0,1e-08]
[1760541098789,5.96915749,111300.0,111290.0,1e-08]
[1760541100313,5.96815749,111300.0,111290.0,1e-08]
[1760541100466,5.96715749,111300.0,111290.0,1e-08]
[1760541100665,5.96815749,111300.0,111290.0,1e-08]
[1760541100859,5.2367441,111300.0,111290.0,1e-08]
[1760541101175,5.96915749,111300.0,111290.0,1e-08]
[1760541101375,5.97115749,111300.0,111290.0,1e-08]
[1760541101814,5.96915749,111300.0,111290.0,1e-08]
[1760541102051,5.97115749,111300.0,111290.0,1e-08]
[1760541103273,5.97115749,111300.0,111270.0,1e-08]
[1760541103274,5.79565648,111280.0,111270.0,1e-08]
[1760541103474,6.04192075,111280.0,111270.0,1e-08]
[1760541104081,6.06895667,111280.0,111270.0,1e-08]
[1760541104481,6.07095667,111280.0,111270.0,1e-08]
[1760541104919,6.06995667,111280.0,111270.0,1e-08]
[1760541105121,6.09274447,111280.0,111270.0,1e-08]
[1760541105326,6.06995667,111280.0,111270.0,1e-08]
[1760541105530,6.07095667,111280.0,111270.0,1e-08]
[1760541108186,6.80371449,111280.0,111270.0,1e-08]
[1760541108385,6.82554086,111280.0,111270.0,1e-08]
[1760541108595,6.93908487,111280.0,111270.0,1e-08]
[1760541108795,6.93808487,111280.0,111270.0,1e-08]
[1760541108928,6.20667193,111280.0,111270.0,1e-08]
[1760541109504,6.21470006,111280.0,111270.0,1e-08]
[1760541109633,6.21370006,111280.0,111270.0,1e-08]
[1760541110056,6.22495541,111280.0,111270.0,1e-08]
[1760541110285,0.03618228,111240.0,111220.0,0.0721521]
[1760541110488,0.03618228,111240.0,111200.0,0.0721521]
[1760541110489,0.21602222,111210.0,111200.0,0.0721521]
[1760541110644,5.89015173,111210.0,111200.0,0.0721521]
[1760541110863,6.02015173,111210.0,111200.0,0.0004]
[1760541111066,6.0472045,111210.0,111200.0,0.0004]
[1760541111266,6.0472045,111210.0,111200.0,1e-08]
[1760541111482,6.06370108,111210.0,111200.0,1e-08]